[Event "GCT Superbet Blitz Poland 2025"]
[Site "Warsaw"]
[Date "2025.04.29"]
[Round "9"]
[White "Praggnanandhaa R"]
[Black "Gavrilescu, David"]
[Result "1-0"]
[ECO "B13"]
[WhiteElo "2758"]
[BlackElo "2554"]
[Annotator "TA"]
[PlyCount "107"]
[EventDate "2025.??.??"]
[EventType "blitz"]
[TimeControl "300+2"]

{[%evp 9,107,0,2,-8,-11,-13,-4,-5,-6,-42,-33,-47,-33,-42,-26,-39,0,0,4,-54,-53,-54,-45,-54,-56,-128,-131,-139,-130,-143,-121,-134,-148,-150,-70,-103,-37,-81,-12,-41,0,0,0,0,0,0,0,0,0,0,71,71,150,137,200,72,207,200,192,123,149,156,206,130,139,118,97,47,102,83,135,139,147,82,69,61,70,70,94,79,667,663,622,620,738,683,798,765,802,788,766,763,1088,1075,950,934,944,941,1031,1020]} 1. d4 {[%emt 0:00:01]} d5 {[%emt 0:00:01]} 2. Bf4 {[%emt 0:00:04]} c5 {[%emt 0:00:02]} 3. e3 {[%emt 0:00:03]} cxd4 {[%emt 0:00:01]} 4. exd4 {[%emt 0:00:01]} Nc6 {[%emt 0:00:01]} 5. c3 {[%emt 0:00:02]} Bf5 {[%emt 0:00:02]} 6. Qb3 {[%emt 0:00:10]} Qd7 {[%emt 0:00:02]} 7. Nd2 {[%emt 0:00:04][%cal Bb1d2,Bd2f1,Bf1e3][%mdl 32]} e6 {[%emt 0:00:01]} 8. Ngf3 {[%emt 0:00:01] The position is equal.} f6 {[%emt 0:00:09]} 9. h3 {[%emt 0:00:32]} g5 {[%emt 0:00:17]} 10. Bg3 {[%emt 0:00:22]} h5 {[%emt 0:00:12]} 11. Be2 {[%emt 0:00:01]} ({RR} 11. Bb5 a6 12. Be2 Nge7 13. c4 Bg6 14. cxd5 exd5 15. O-O Nf5 16. Bd3 Kf7 17. Rae1 g4 18. hxg4 hxg4 19. Bxf5 Bxf5 20. Nh4 Nxd4 21. Qc3 Nc6 22. Nxf5 Qxf5 23. f3 Bb4 24. Qb3 Bc5+ 25. Bf2 g3 {Moroni,L (2566)-Perez Ponsa,F (2554) Chess.com INT 2021 0-1 (31)}) 11... Nge7 {[%emt 0:00:06]} 12. Nf1 {[%emt 0:00:25]} ({RR} 12. Rc1 Bh6 13. Qd1 Bg6 14. c4 Kf7 15. cxd5 exd5 16. O-O Nf5 17. Rc5 Kg7 18. Bh2 g4 19. hxg4 hxg4 20. Ne1 g3 21. Bxg3 Nxg3 22. fxg3 Be3+ 23. Rf2 Qd6 24. Nf1 Bxf2+ 25. Kxf2 Rae8 26. Bf3 Be4 {Janampa Javier,B (1814)-Alfaro Zambrano,L (2001) Cusco PER 2025 0-1 (46)}) 12... Bg7 $146 {[%emt 0:00:27]} ({RR} 12... Be4 13. Ne3 Nf5 14. Nxf5 exf5 15. Nd2 Bxg2 16. Rg1 Bxh3 17. O-O-O f4 18. Bh2 Bf5 19. Qa4 O-O-O 20. Nb3 Kb8 21. Bf3 Ka8 22. Nc5 Bxc5 23. dxc5 Ne5 24. Qxd7 Rxd7 25. Be2 Bg4 26. f3 Bxf3 27. Bxf3 {Fournier,L (2063)-Bournel,A (2336) Agen 2021 0-1 (31)}) ({RR} 12... Be4 13. Ne3 Nc8 14. h4 g4 15. Nd2 Bg6 16. O-O Bh6 17. Rae1 O-O 18. Bb5 f5 19. c4 Nb6 20. c5 Nc8 21. f4 gxf3 22. Nxf3 f4 23. Ne5 Qg7 24. Nxc6 Be4 25. Bh2 fxe3 26. Re2 Rxf1+ 27. Kxf1 {Babiy,O (2296)-Hajiyeva,L (2042) Prague 2022 0-1 (35)}) ({RR} 12... Be4 13. Ne3 Nf5 14. Nxf5 exf5 15. Nd2 Bxg2 16. Rh2 Be4 17. f3 f4 18. fxe4 fxg3 19. Rg2 Bd6 20. exd5 Qxh3 21. dxc6 Kf8 22. Qd5 Qh1+ 23. Nf1 Kg7 24. Qxd6 Qxg2 25. Qe7+ Kg6 26. Bd3+ f5 27. Bxf5+ {Bartell,T (2354)-Rahul,S (2463) Sturbridge 2021 1-0}) 13. Ne3 {[%emt 0:00:34]} Be4 {[%emt 0:00:03]} 14. h4 {[%emt 0:00:09]} (14. Nd2 $11) 14... g4 $1 $15 {[%emt 0:00:22]} 15. Nd2 {[%emt 0:00:01]} Bh7 {[%emt 0:00:06]} 16. Qa3 {[%emt 0:00:56]} Bh6 {[%emt 0:00:15]} 17. b4 {[%emt 0:00:12]} (17. O-O $15) 17... Ng6 $17 {[%emt 0:01:07]} 18. b5 {[%emt 0:00:30]} Nce7 {[%emt 0:00:01]} 19. b6 {[%emt 0:00:01]} O-O {[%emt 0:00:16]} 20. bxa7 {[%emt 0:00:01][%csl Oa2,Oa7,Oc3] White has weak pawns} Nc6 {[%emt 0:00:31][%cal Of6f5] Wards off Bb8} 21. Bb5 {[%emt 0:00:03]} Rfc8 {[%emt 0:00:21]} (21... Rxa7 22. Qxa7 f5 23. Nxg4 (23. Bxc6 Qxc6 24. Bb8 f4 $16) 23... hxg4 24. h5 $16) (21... Nf4 $17 {and ...Qf7 should not be overlooked} 22. O-O Qf7 (22... Rxa7 23. Qxa7 $16) 23. Bxf4 Bxf4) 22. Bb8 {[%emt 0:00:40]} Nge7 {[%emt 0:00:34]} (22... Qe7 $17 23. Qxe7 Ngxe7) 23. Nb3 {[%emt 0:00:24]} b6 {[%emt 0:00:12] Inhibits Nc5.} (23... Qd8 $17 24. Nc5 Qb6 (24... Nxb8 25. Nxe6 $11)) 24. Qa6 $11 {[%emt 0:00:19]} (24. O-O Qd8 25. Qd6 Qxd6 (25... Nxa7 26. Qxe6+ Kg7 27. Bxa7 $11) 26. Bxd6 Rxa7 $17) 24... Qd8 {[%emt 0:00:16]} 25. Bxc6 {[%emt 0:00:01]} (25. Qb7 $2 Rcxb8 (25... Nxa7 26. Bxa7 Qc7 27. Qxc7 $11) 26. axb8=B (26. axb8=R $2 Rxb8 27. Qa6 Ra8 $19) 26... Rxb8 $19) 25... Nxc6 {[%emt 0:00:04]} 26. Qb7 $36 {[%emt 0:00:01][%mdl 2048] White fights for an advantage. Some like it hot} Raxb8 {[%emt 0:00:03]} 27. axb8=Q {[%emt 0:00:04]} Nxb8 {[%emt 0:00:03]} 28. O-O {[%emt 0:00:08]} Bd3 {[%emt 0:00:04]} 29. Rfe1 {[%emt 0:00:05][%cal Oe3g4]} Ba6 {[%emt 0:00:05]} (29... Nd7 $11 30. Nxg4 hxg4 31. Rxe6 Nf8 32. Qxb6 Nxe6 33. Qxe6+ Kh8) 30. Qa7 $16 {[%emt 0:00:01][%cal Oe3g4]} Bf4 {[%emt 0:00:04]} (30... Qd6) 31. g3 {[%emt 0:00:03]} Bd6 {[%emt 0:00:03]} (31... Bc7 $16 32. Rac1 Bb5) 32. a4 {[%emt 0:00:03]} (32. Ng2 $18 {and White stays clearly on top.} Bb5 33. Rxe6) 32... Bd3 {[%emt 0:00:08] [#]} (32... Rxc3 $16 {was called for.} 33. Rab1 Bd3) 33. a5 $1 $18 {[%emt 0:00:00]} bxa5 {[%emt 0:00:05]} 34. Qxa5 {[%emt 0:00:03]} (34. Rxa5 Nc6 (34... Rxc3 $2 35. Nc5 $18) 35. Qb7 Nxa5 $17) (34. Nxa5 $18 {Threatens to win with Nb7.} Qd7 35. Qb7) 34... Qxa5 {[%emt 0:00:02]} 35. Nxa5 {[%emt 0:00:03]} Rxc3 {[%emt 0:00:02]} (35... Nc6 $16 36. Ng2 Nd8) 36. Rec1 {[%emt 0:00:00]} Rxc1+ {[%emt 0:00:02]} 37. Rxc1 {[%emt 0:00:01]} Kf7 {[%emt 0:00:01]} 38. Rc8 {[%emt 0:00:03]} ({White should try} 38. Nb7 $16 Be7 39. Rc7) 38... Na6 {[%emt 0:00:02]} (38... Ba6 $14 39. Rc1 Ke7) 39. Rc6 {[%emt 0:00:04]} Be7 {[%emt 0:00:01]} ({Black should try} 39... Ke7) 40. Nb3 {[%emt 0:00:02]} Nb4 {[%emt 0:00:02] [#]} 41. Rc7 {[%emt 0:00:01]} (41. Rb6 $142 $1) 41... Ke8 $16 {[%emt 0:00:02]} 42. Ng2 {[%emt 0:00:01]} Bd6 {[%emt 0:00:01] Repels Nf4} 43. Rb7 {[%emt 0:00:02]} Nc2 {[%emt 0:00:02]} 44. Nc5 {[%emt 0:00:03]} Nxd4 $2 {[%emt 0:00:02][%mdl 8192]} (44... Bf5 $16) 45. Nxd3 $18 {[%emt 0:00:01] White is clearly winning.} e5 {[%emt 0:00:02][%cal Be6e5,Be5e4][%mdl 32]} 46. Ne3 {[%emt 0:00:01]} Nf3+ {[%emt 0:00:02]} 47. Kf1 {[%emt 0:00:01]} e4 {[%emt 0:00:02]} 48. Nb2 {[%emt 0:00:03]} d4 {[%emt 0:00:02][%cal Bd5d4,Bd4d3,Bd3d2][%mdl 32]} 49. Nf5 {[%emt 0:00:02]} Be5 {[%emt 0:00:01]} 50. Nc4 {[%emt 0:00:02]} d3 {[%emt 0:00:01]} 51. Ncd6+ {[%emt 0:00:01]} Kd8 {[%emt 0:00:01]} 52. Nxe4 {[%emt 0:00:01]} Kc8 {[%emt 0:00:05]} 53. Rb3 {[%emt 0:00:06]} d2 {[%emt 0:00:05]} 54. Rd3 {[%emt 0:00:01] What a bad dream for Black. Weighted Error Value: White=0.21 (precise) /Black=0.46 Loses game: 	--- 	Black=1 Mistake: 	White=6 	Black=10 Inaccurate: 	White=4 	Black=2 OK: 	White=15 	Black=13 Best: 	White=5 	Black=1 Strong: 	White=1 	Black=1} 1-0

[Event "GCT Superbet Blitz Poland 2025"]
[Site "Warsaw"]
[Date "2025.04.29"]
[Round "9"]
[White "Duda, Jan-Krzysztof"]
[Black "Aronian, Levon"]
[Result "1-0"]
[ECO "A22"]
[WhiteElo "2739"]
[BlackElo "2747"]
[Annotator "RC"]
[PlyCount "55"]
[EventDate "2025.??.??"]
[EventType "blitz"]
[TimeControl "300+2"]

1. c4 {[%emt 0:00:01]} Nf6 {[%emt 0:00:03]} 2. Nc3 {[%emt 0:00:02]} e5 {[%emt 0:00:03]} 3. g3 {[%emt 0:00:04]} Bb4 {[%emt 0:00:04]} 4. Bg2 {[%emt 0:00:11]} O-O {[%emt 0:00:02]} 5. Nf3 {[%emt 0:00:12]} Re8 {[%emt 0:00:13]} 6. O-O {[%emt 0:00:02]} Bxc3 {[%emt 0:00:04]} 7. bxc3 {[%emt 0:00:03]} d6 {[%emt 0:00:03]} 8. a4 $146 {[%emt 0:00:09]} ({RR} 8. d3 Bd7 9. h3 Bc6 10. e4 Nbd7 11. Nh4 b5 12. cxb5 Bxb5 13. Be3 Nc5 14. c4 Ba4 15. Qd2 Ne6 16. f4 exf4 17. gxf4 Nxe4 18. Bxe4 Qxh4 19. Bxa8 Rxa8 20. Kh2 Qf6 21. d4 Qf5 22. d5 Nf8 {Petersons,A-Klovsky,R Tallinn 1964 0-1 (36)}) ({RR} 8. d3 e4 9. Ng5 exd3 10. exd3 h6 11. Nh3 Nbd7 12. Nf4 Rb8 13. h3 b6 14. Nd5 Nxd5 15. cxd5 Qf6 16. Be3 Nc5 17. d4 Ne4 18. c4 Bd7 19. Re1 Re7 20. g4 Rbe8 21. Qd3 Qh4 22. Qf1 Ng5 {Andreikin,D (2723)-Grigoriants,S (2588) Moscow 2012 ½-½}) ({RR} 8. d3 e4 9. Nd4 h6 10. Rb1 Qe7 11. Bd2 Qe5 12. Bf4 Qh5 13. f3 exd3 14. exd3 Na6 15. Qd2 Nc5 16. Nb5 Ne6 17. Be3 Bd7 18. Nd4 Nc5 19. Nb3 b6 20. d4 Nb7 21. Rbe1 a5 22. Bf2 a4 {Gimenez,I (2068)-Tomeo,I (2291) Perez, Santa Fe ARG 2025 0-1 (33)}) ({RR} 8. Rb1 Nc6 9. d3 h6 10. e4 Rb8 11. h3 a6 12. Nd2 b5 13. f4 bxc4 14. Rxb8 Nxb8 15. Nxc4 Nbd7 16. fxe5 dxe5 17. Qf3 Qe7 18. g4 Nh7 19. h4 f6 20. d4 Bb7 21. Ba3 Qf7 22. d5 Nhf8 {Charochkina,D (2337)-Tarasova,V (2286) Khanty-Mansiysk 2013 ½-½ (61)}) ({RR} 8. d3 h6 9. Be3 Nbd7 10. Qd2 Ng4 11. h3 Nxe3 12. fxe3 Nf6 13. e4 c6 14. Nh4 d5 15. exd5 cxd5 16. Nf5 Bxf5 17. Rxf5 dxc4 18. Raf1 Re6 19. Qe3 Qb6 20. Qxb6 axb6 21. Bxb7 Rxa2 22. dxc4 Rxe2 {Staroszczyk,M (2004)-Dowgird,F (2172) Szczyrk 2014 0-1 (56)}) 8... a5 {[%emt 0:00:21]} 9. d3 {[%emt 0:00:10]} e4 {[%emt 0:00:01]} 10. Nd4 {[%emt 0:00:06]} h6 {[%emt 0:00:03]} 11. h3 {[%emt 0:00:27]} b6 {[%emt 0:00:30]} 12. g4 {[%emt 0:00:09]} Bb7 {[%emt 0:00:04]} 13. Nf5 {[%emt 0:00:22]} exd3 {[%emt 0:00:35]} 14. exd3 {[%emt 0:00:01]} Bxg2 {[%emt 0:00:02]} 15. Kxg2 {[%emt 0:00:02]} Nbd7 {[%emt 0:00:10]} 16. d4 {[%emt 0:00:08]} Qc8 {[%emt 0:00:43]} 17. Qf3 {[%emt 0:00:40]} Rb8 {[%emt 0:00:20]} 18. Bxh6 {[%emt 0:00:36]} gxh6 {[%emt 0:00:01]} 19. Nxh6+ {[%emt 0:00:01]} Kg7 {[%emt 0:01:04]} 20. g5 {[%emt 0:00:37]} Rh8 {[%emt 0:00:01]} 21. Nf5+ {[%emt 0:00:15]} Kf8 {[%emt 0:00:01]} 22. Rae1 {[%emt 0:00:13]} Rg8 {[%emt 0:00:58]} 23. Qf4 {[%emt 0:00:51]} Qb7+ {[%emt 0:00:15]} 24. Kh2 {[%emt 0:00:21]} Re8 {[%emt 0:00:01]} 25. d5 {[%emt 0:00:04]} Qc8 {[%emt 0:00:06]} 26. gxf6 {[%emt 0:00:02]} Rh8 {[%emt 0:00:03]} 27. Ne7 {[%emt 0:00:03]} Qd8 {[%emt 0:00:01]} 28. Qg5 {[%emt 0:00:02]} 1-0

[Event "GCT Superbet Blitz Poland 2025"]
[Site "Warsaw"]
[Date "2025.04.29"]
[Round "9"]
[White "Fedoseev, Vladimir"]
[Black "Firouzja, Alireza"]
[Result "1/2-1/2"]
[ECO "E08"]
[WhiteElo "2739"]
[BlackElo "2757"]
[Annotator "TA"]
[PlyCount "145"]
[EventDate "2025.??.??"]
[EventType "blitz"]
[TimeControl "300+2"]

{[%evp 17,145,21,21,17,24,19,16,0,9,9,38,35,28,37,58,48,97,101,108,108,127,101,101,118,103,101,102,103,121,94,195,205,210,212,201,66,70,35,36,35,32,30,42,35,125,77,125,138,129,90,112,50,56,56,52,52,52,41,37,6,74,0,315,313,295,58,124,58,260,64,245,101,171,105,164,52,52,0,0,-243,0,0,74,51,53,52,56,56,65,62,77,77,82,56,74,47,95,77,137,132,172,174,170,113,163,154,349,341,337,333,374,357,358,350,342,182,225,170,146,75,74,8,8,8,8,8,8,8,8,8]} 1. d4 {[%emt 0:00:02]} Nf6 {[%emt 0:00:03]} 2. c4 {[%emt 0:00:01]} e6 {[%emt 0:00:02]} 3. Nf3 {[%emt 0:00:02]} d5 {[%emt 0:00:01]} 4. g3 {[%emt 0:00:26]} Bb4+ {[%emt 0:00:04]} 5. Bd2 {[%emt 0:00:02]} Be7 {[%emt 0:00:01]} 6. Bg2 {[%emt 0:00:02]} O-O {[%emt 0:00:01]} 7. O-O {[%emt 0:00:02]} c6 {[%emt 0:00:01]} 8. Qc2 {[%emt 0:00:02]} Nbd7 {[%emt 0:00:04]} 9. Bf4 {[%emt 0:00:01]} a5 {[%emt 0:00:11]} 10. Rd1 {[%emt 0:00:05] E08: Closed Catalan: Main Line: 7 Qc2.} h6 {[%emt 0:00:10]} 11. Nc3 {[%emt 0:00:16]} dxc4 {[%emt 0:01:19]} 12. Nd2 {[%emt 0:00:01][%cal Bf3d2,Bd2f1,Bf1e3][%mdl 32] White sacrificed a pawn} Nb6 {[%emt 0:00:22]} 13. e4 {[%emt 0:00:02] Inhibits Nfd5.} g5 {[%emt 0:00:03]} 14. Be3 {[%emt 0:00:06]} Ng4 {[%emt 0:00:01]} 15. Nf1 {[%emt 0:00:10]} f5 $146 {[%emt 0:00:50]} (15... Nxe3 16. Nxe3 a4 17. a3 Qc7 18. Qe2 e5 19. d5 Bc5 20. Qh5 Bxe3 21. Qxh6 Bd4 22. Qxg5+ Kh8 23. Rxd4 exd4 24. Qh6+ Kg8 25. Qg5+ {½-½ Smirnov,P (2538)-Petrov,N (2551) Dzhubga Rapid op 2023 (7)}) ({RR} 15... Nxe3 16. Nxe3 a4 17. a3 Qc7 18. Qe2 e5 19. d5 Bc5 20. Qh5 Bxe3 21. Qxh6 Bd4 22. Qxg5+ Kh8 23. Rxd4 exd4 24. Qh6+ Kg8 25. Qg5+ {½-½ (25) Smirnov,P (2538)-Petrov,N (2551) Dzhubga RUS 2023}) ({RR} 15... Nxe3 16. Nxe3 a4 17. a3 Qc7 18. Qe2 e5 19. d5 Bc5 20. Qh5 Bxe3 21. Qxh6 Bd4 22. Qxg5+ Kh8 23. Rxd4 exd4 24. Qh6+ Kg8 25. Qg5+ {½-½ (25) Smirnov,P (2538)-Petrov,N (2551) Dzhubga RUS 2023}) 16. exf5 $1 {[%emt 0:00:06]} exf5 {[%emt 0:00:20]} (16... Qe8 $14) 17. d5 $16 {[%emt 0:00:02]} Nxe3 {[%emt 0:00:08]} 18. Nxe3 {[%emt 0:00:02]} Qe8 {[%emt 0:00:03]} 19. dxc6 {[%emt 0:01:01]} bxc6 {[%emt 0:00:04][%csl Oa5,Oc4,Oc6] Black has weak pawns} 20. Na4 {[%emt 0:00:04] White is much more active.} Nxa4 {[%emt 0:00:32]} 21. Qxa4 {[%emt 0:00:01]} (21. Qxc4+ Qf7 22. Qxc6 (22. Qxa4 f4 $11) 22... Be6 (22... Nxb2 $2 23. Bd5 $18)) 21... Rb8 {[%emt 0:00:14]} 22. Bxc6 {[%emt 0:00:09]} Qg6 {[%emt 0:00:04]} 23. Qxc4+ {[%emt 0:00:09]} Kg7 {[%emt 0:00:05] Black is weak on the light squares} (23... Kh8 $16) 24. Qd4+ $18 {[%emt 0:00:22]} Qf6 {[%emt 0:00:04][%cal Of6d4]} 25. Qa7 {[%emt 0:00:34][%csl Ba5,Bb8]} Be6 {[%emt 0:00:01]} 26. Bd5 {[%emt 0:01:18]} (26. Qxa5 f4 27. Nd5 Bxd5 28. Qxd5 (28. Bxd5 fxg3 29. f4 gxf4 $17) 28... fxg3 29. fxg3 Qf2+ 30. Kh1 Rxb2 $17) (26. Nd5 $18 Bxd5 27. Bxd5) 26... f4 $14 {[%emt 0:00:03]} 27. Bxe6 {[%emt 0:00:04]} fxe3 {[%emt 0:00:04]} 28. Qxe3 {[%emt 0:00:03]} Rxb2 {[%emt 0:00:02][%cal Rf6f2]} 29. Rf1 {[%emt 0:00:20]} Rc2 {[%emt 0:00:03]} 30. Rad1 {[%emt 0:00:16]} (30. Rab1 {is more complex.} Bc5 31. Rb7+ Kh8 32. Qd3) 30... Rc6 {[%emt 0:00:52]} (30... Bc5 $14 31. Rd7+ Kh8) 31. Bb3 {[%emt 0:00:04]} (31. Bd5 $142 Bc5 32. Qe4) 31... Rc7 {[%emt 0:00:02]} (31... Bc5 $142 32. Rd7+ Kh8) 32. Rd5 $16 {[%emt 0:00:02]} Bb4 {[%emt 0:00:05]} 33. Qd3 {[%emt 0:00:04]} Kh8 {[%emt 0:00:04]} 34. Qd4 {[%emt 0:00:04]} (34. Qd1 $16) 34... Qxd4 {[%emt 0:00:02]} 35. Rxd4 {[%emt 0:00:00]} Re7 {[%emt 0:00:01]} 36. Kg2 {[%emt 0:00:02]} Re2 {[%emt 0:00:02]} 37. Rd5 {[%emt 0:00:02] Repels Bc5} Be1 {[%emt 0:00:02][%cal Rf8f2]} 38. Kh3 {[%emt 0:00:03]} Bxf2 {[%emt 0:00:04]} (38... Rfxf2 $11 39. Rxf2 Rxf2) 39. Kg4 (39. Rxa5 $16 Bc5 40. Rc1) 39... Rf6 $2 {[%emt 0:00:03][%mdl 8192]} (39... a4 $1 $11 {and Black has nothing to worry.} 40. Bd1 Rxa2) 40. Rd8+ $1 $18 {[%emt 0:00:02]} (40. Rxa5 Kg7 $16) 40... Kg7 {[%emt 0:00:01]} 41. Kh5 $2 {[%emt 0:00:02]} ({Only move:} 41. Rc1 $1 $18 {[%cal Rc1c7]} h5+ 42. Kxh5 Rh6+ 43. Kg4) 41... Re7 {[%emt 0:00:02]} (41... Re1 $1 $14 42. Rg8+ Kh7 43. Rxe1 Bxe1) 42. Rfd1 {[%emt 0:00:06]} (42. Rg8+ $16 Kh7 43. Ra8) 42... g4 $2 {[%emt 0:00:02]} 43. Rg8+ {[%emt 0:00:01]} (43. Kxg4 $6 a4 $16) 43... Kh7 {[%emt 0:00:01][%cal Oa5a4]} 44. Rxg4 {[%emt 0:00:02]} (44. Rdd8 $1 $18 Rf5+ 45. Kxg4 Rg5+ 46. Kf3 (46. Rxg5 hxg5 47. Kxg5 Bb6 $18) 46... Rf5+ 47. Kg2) 44... Rc6 {[%emt 0:00:04]} (44... Re5+ $16 45. Kh4 Bc5) 45. Bg8+ {[%emt 0:00:02]} Kh8 {[#]} 46. Bd5 {[%emt 0:00:01]} (46. Rd5 Rg7 $16) (46. Rd8 $1 $18 {Intending Bc4+ and mate.} Re5+ 47. Kh4) 46... Rd6 {[%emt 0:00:03] aiming for ...Re5+.} 47. Kh4 {[%emt 0:00:03]} (47. Rg8+ Kh7 48. Rf8 Bxg3 $15) ({White should play} 47. Bf3 $14 Re5+ 48. Kh4 Rxd1 49. Bxd1) 47... Red7 $1 $11 {[%emt 0:00:02]} 48. Rg8+ {[%emt 0:00:03]} Kh7 {[%emt 0:00:01]} 49. Rf8 $1 {[%emt 0:00:01]} Be3 {[%emt 0:00:04]} (49... Rxd5 $11 {remains equal.} 50. Rxd5 Bxg3+ 51. hxg3 Rxd5) 50. Be4+ {[%emt 0:00:01]} Kg7 {[%emt 0:00:00]} 51. Rxd6 {[%emt 0:00:01]} Rxd6 $14 {[%emt 0:00:01][%mdl 4096] Endgame KRB-KRB. White is a pawn up.} 52. Rf3 {[%emt 0:00:01]} Bg5+ {[%emt 0:00:03]} 53. Kh5 {[%emt 0:00:01]} Rd2 {[%emt 0:00:01]} 54. h4 {[%emt 0:00:02]} Bf6 {[%emt 0:00:02]} 55. a3 {[%emt 0:00:02]} Rd4 {[%emt 0:00:02]} 56. Bf5 {[%emt 0:00:04]} Be5 {[%emt 0:00:02]} (56... a4 $14) 57. g4 {[%emt 0:00:02]} Bf6 {[%emt 0:00:04]} (57... Bf4 $142) 58. Rb3 $16 {[%emt 0:00:02]} Rd6 {[%emt 0:00:03]} 59. Rb7+ {[%emt 0:00:00]} Kf8 {[%emt 0:00:00]} 60. Ra7 {[%emt 0:00:05]} (60. Kxh6 $18 {Strongly threatening g5.} Bxh4+ 61. Kh7) 60... Bd8 {[%emt 0:00:02]} (60... Bc3 $16 61. Rd7 Rxd7 62. Bxd7 Kg7) 61. Bg6 $18 {[%emt 0:00:01]} Rd5+ $2 {[%emt 0:00:03]} (61... Bxh4 $16 {is a better defense.} 62. Kxh6 (62. Kxh4 Rxg6 63. Rxa5 Kg8 $16) 62... Bd8 63. Rf7+ Kg8) 62. Kxh6 {[%emt 0:00:03]} Bxh4 {[%emt 0:00:01]} 63. Kh7 {[%emt 0:00:02]} Be7 {[%emt 0:00:01] [#]} 64. a4 $1 {[%emt 0:00:03]} Rd1 {[%emt 0:00:05]} 65. Rxa5 {[%emt 0:00:01]} Bd6 {[%emt 0:00:02]} 66. Rf5+ {[%emt 0:00:02]} Ke7 {[%emt 0:00:00]} 67. a5 {[%emt 0:00:00]} Ra1 {[%emt 0:00:02]} 68. Rb5 {[%emt 0:00:05] Inhibits Bb4.} (68. Rf7+ $142 Ke6 69. Ra7) 68... Bc7 $16 {[%emt 0:00:01]} 69. g5 {[%emt 0:00:03]} (69. Rb7 $16 Kd6 70. a6 Rxa6 71. Kh6) 69... Rxa5 $11 {[%emt 0:00:01] The position is equal.} 70. Rxa5 {[%emt 0:00:02]} Bxa5 {[%emt 0:00:01]} 71. Bd3 {[%emt 0:00:01]} Bc3 {[%emt 0:00:01]} 72. g6 Bd4 73. g7 {Weighted Error Value: White=0.33/Black=0.34 Loses game:   	---    	Black=4   Missed win:   	White=1   	Black=1   Mistake:    	White=11  	Black=11   Inaccurate:   	White=6   	Black=3   OK:     	White=16  	Black=21   Best:    	White=4   	Black=5   Strong:    	White=4   	Black=1} 1/2-1/2